bitfinex/quotes_BTCUSD_20250615
["timestamp","ask_amount","ask_price","bid_price","bid_amount"]
[1750002057107,0.04678925,105930.0,105920.0,0.59580032]
[1750002057348,0.04678925,105930.0,105920.0,0.61349399]
[1750002057785,0.04678925,105930.0,105920.0,0.59580032]
[1750002058028,0.04678925,105930.0,105920.0,0.61349416]
[1750002058245,0.04678925,105930.0,105920.0,0.59580032]
[1750002058460,0.04678925,105930.0,105920.0,0.61349416]
[1750002058672,0.04678925,105930.0,105920.0,0.59580032]
[1750002058887,0.04678925,105930.0,105920.0,0.61349416]
[1750002059990,0.04678925,105930.0,105920.0,0.61349422]
[1750002060443,0.04678925,105930.0,105920.0,0.61349463]
[1750002060667,0.04678925,105930.0,105920.0,0.59580032]
[1750002060879,0.04678925,105930.0,105920.0,0.61349477]
[1750002061317,0.04678925,105930.0,105920.0,0.61349455]
[1750002061536,0.04678925,105930.0,105920.0,0.59580032]
[1750002061731,0.04678925,105930.0,105920.0,0.61349474]
[1750002061945,0.04678925,105930.0,105920.0,0.59580032]
[1750002062188,0.64894628,105930.0,105920.0,0.4206148]
[1750002062422,0.71410213,105930.0,105920.0,0.32744659]
[1750002062652,0.64894628,105930.0,105920.0,0.49878133]
[1750002062868,0.64894628,105930.0,105920.0,0.49878132]
[1750002063116,0.64894628,105930.0,105920.0,0.48108659]
[1750002063341,0.64894628,105930.0,105920.0,0.49878132]
[1750002063552,0.64894628,105930.0,105920.0,0.57425505]
[1750002063767,0.64894628,105930.0,105920.0,0.57425511]
[1750002065104,0.64894628,105930.0,105920.0,0.55656032]
[1750002066014,0.64894628,105930.0,105920.0,0.57425511]
[1750002066440,0.64894628,105930.0,105920.0,0.55656032]
[1750002066915,0.64894628,105930.0,105920.0,0.57425511]
[1750002067123,0.64894628,105930.0,105920.0,0.57427877]
[1750002068014,0.64894628,105930.0,105920.0,0.55656032]
[1750002068239,0.64894628,105930.0,105920.0,0.57427881]
[1750002068676,0.64894628,105930.0,105920.0,0.55656032]
[1750002068899,0.64894628,105930.0,105920.0,0.57427891]
[1750002069415,0.64894628,105930.0,105920.0,0.55656032]
[1750002069629,0.64894628,105930.0,105920.0,0.57427895]
[1750002071438,0.64894628,105930.0,105920.0,0.55656032]
[1750002071651,0.64894628,105930.0,105920.0,0.57427895]
[1750002072762,0.04678925,105930.0,105920.0,0.57427895]
[1750002073010,0.64894628,105930.0,105920.0,0.55656032]
[1750002073733,0.71410213,105930.0,105920.0,0.57427895]
[1750002074190,0.71410213,105930.0,105920.0,0.55656032]
[1750002074402,0.64894628,105930.0,105920.0,0.57427584]
[1750002074813,0.64894628,105930.0,105920.0,0.42063584]
[1750002075022,0.64894628,105930.0,105920.0,0.55696032]
[1750002075238,0.64894628,105930.0,105920.0,0.57467501]
[1750002075443,0.64894628,105930.0,105920.0,0.57467503]
[1750002076451,0.64894628,105930.0,105920.0,0.57467502]
[1750002076858,0.64894628,105930.0,105920.0,0.42063503]
[1750002077067,1.31625916,105930.0,105920.0,0.54124842]
[1750002077279,1.31625916,105930.0,105920.0,0.57903122]
[1750002077487,1.31625916,105930.0,105920.0,0.57903264]
[1750002077488,0.1119451,105930.0,105920.0,0.57903264]
[1750002077679,0.64894628,105930.0,105920.0,0.57903278]
[1750002077883,0.64894628,105930.0,105920.0,0.52236655]
[1750002078088,0.64894628,105930.0,105920.0,0.52236697]
[1750002078288,0.64894628,105930.0,105920.0,0.50464664]
[1750002078498,0.64894628,105930.0,105920.0,0.52236699]
[1750002078700,0.71410213,105930.0,105920.0,0.50464664]
[1750002078981,0.71410213,105930.0,105920.0,0.52236697]
[1750002079180,0.71410213,105930.0,105920.0,0.36840695]
[1750002079405,0.71410213,105930.0,105920.0,0.50488664]
[1750002079629,0.71410213,105930.0,105920.0,0.55092488]
[1750002080350,0.71410213,105930.0,105920.0,0.53320457]
[1750002080773,0.71410213,105930.0,105920.0,0.55092488]
[1750002081442,0.71410213,105930.0,105920.0,0.53320457]
[1750002081659,0.71410213,105930.0,105920.0,0.55084417]
[1750002081879,0.71410213,105930.0,105920.0,0.53312457]
[1750002082100,0.71410213,105930.0,105920.0,0.55084417]
[1750002082780,0.71410213,105930.0,105920.0,0.53312457]
[1750002083000,0.71410213,105930.0,105920.0,0.55084417]
[1750002083235,0.71410213,105930.0,105920.0,0.55084421]
[1750002083449,0.71410213,105930.0,105920.0,0.55084414]
[1750002083657,0.71410213,105930.0,105920.0,0.55084411]
[1750002083868,0.71410213,105930.0,105920.0,0.55084321]
[1750002084058,0.71410213,105930.0,105920.0,0.55084176]
[1750002084277,0.71410213,105930.0,105920.0,0.53312457]
[1750002084501,0.71410213,105930.0,105920.0,0.5685583]
[1750002084713,0.71410213,105930.0,105920.0,0.56855802]
[1750002084951,0.71410213,105930.0,105920.0,0.55084144]
[1750002085320,0.71410213,105930.0,105920.0,0.56855314]
[1750002085531,0.71410213,105930.0,105920.0,0.56855262]
[1750002085731,0.71410213,105930.0,105920.0,0.55084144]
[1750002085931,0.71410213,105930.0,105920.0,0.56855231]
[1750002086653,0.04678925,105930.0,105920.0,0.56855218]
[1750002086860,0.64894628,105930.0,105920.0,0.56855218]
[1750002087024,0.64894628,105930.0,105920.0,0.56855137]
[1750002087197,0.64894628,105930.0,105920.0,0.55084144]
[1750002087652,0.64894628,105930.0,105920.0,0.56855122]
[1750002087777,0.64894628,105930.0,105920.0,0.56855126]
[1750002087981,0.64894628,105930.0,105920.0,0.56855128]
[1750002088193,0.64894628,105930.0,105920.0,0.55084144]
[1750002088607,0.64894628,105930.0,105920.0,0.56855126]
[1750002088873,0.64894628,105930.0,105920.0,0.55084144]
[1750002089094,0.64894628,105930.0,105920.0,0.56855137]
[1750002089522,0.64894628,105930.0,105920.0,0.56855164]
[1750002089729,0.64894628,105930.0,105920.0,0.55084144]
[1750002090138,0.72951413,105930.0,105920.0,0.56855196]
[1750002090350,0.72951413,105930.0,105920.0,0.56855195]
[1750002090554,0.72951413,105930.0,105920.0,0.5685518]
[1750002090987,0.72951413,105930.0,105920.0,0.56855183]
[1750002091599,0.72951413,105930.0,105920.0,0.39672144]
[1750002091815,0.72951413,105930.0,105920.0,0.41443184]
[1750002092257,1.33167116,105930.0,105920.0,0.55108144]
[1750002092468,1.33167116,105930.0,105920.0,0.56879253]
[1750002092666,0.72951413,105930.0,105920.0,0.56879254]
[1750002092872,0.72951413,105930.0,105920.0,0.55108144]
[1750002093304,0.73877786,105930.0,105920.0,0.55108144]
[1750002093503,0.73877786,105930.0,105920.0,0.56879254]
[1750002093930,0.73877786,105930.0,105920.0,0.56879256]
[1750002094135,0.64894628,105930.0,105920.0,0.56879256]
[1750002094338,0.64894628,105930.0,105920.0,0.56879258]
[1750002094745,0.64894628,105930.0,105920.0,0.56879252]
[1750002095159,0.64894628,105930.0,105920.0,0.5687925]
[1750002095380,0.64894628,105930.0,105920.0,0.56879248]
[1750002095592,0.64894628,105930.0,105920.0,0.55108144]
[1750002095802,0.64894628,105930.0,105920.0,0.5687925]
[1750002096184,0.64894628,105930.0,105920.0,0.55108144]
[1750002096393,0.64894628,105930.0,105920.0,0.56879248]
[1750002096606,0.64894628,105930.0,105920.0,0.56879256]
[1750002097012,0.64894628,105930.0,105920.0,0.56879043]
[1750002097217,0.64894628,105930.0,105920.0,0.56879003]
[1750002097634,0.64894628,105930.0,105920.0,0.56879]
[1750002097840,0.64894628,105930.0,105920.0,0.55108144]
[1750002098053,0.64894628,105930.0,105920.0,0.56879008]
[1750002098261,0.658471,105930.0,105920.0,0.55108144]
[1750002098693,0.658471,105930.0,105920.0,0.56879008]
[1750002098901,0.658471,105930.0,105920.0,0.56879014]
[1750002099230,0.658471,105930.0,105920.0,0.55108144]
[1750002099454,0.658471,105930.0,105920.0,0.54047215]
[1750002099671,0.658471,105930.0,105920.0,0.55105775]
[1750002099886,0.64894628,105930.0,105920.0,0.55105775]
[1750002100112,0.64894628,105930.0,105920.0,0.56876618]
[1750002100325,0.64894628,105930.0,105920.0,0.56876612]
[1750002100538,0.64894628,105930.0,105920.0,0.55105775]
[1750002100784,0.64894628,105930.0,105920.0,0.56876663]
[1750002101005,0.64894628,105930.0,105920.0,0.56876673]
[1750002101226,0.64894628,105930.0,105920.0,0.56876696]
[1750002101661,0.64894628,105930.0,105920.0,0.56876711]
[1750002102105,0.64894628,105930.0,105920.0,0.56876702]
[1750002102330,0.64894628,105930.0,105920.0,0.56876699]
[1750002102539,0.64894628,105930.0,105920.0,0.55105775]
[1750002102759,0.64894628,105930.0,105920.0,0.56876708]
[1750002102967,0.64894628,105930.0,105920.0,0.55105775]
[1750002103170,0.64894628,105930.0,105920.0,0.56876708]
[1750002104076,0.64894628,105930.0,105920.0,0.55105775]
[1750002104296,0.64894628,105930.0,105920.0,0.5687671]
[1750002104518,0.64894628,105930.0,105920.0,0.54047286]
[1750002104732,0.64894628,105930.0,105920.0,0.54047263]
[1750002104947,0.64894628,105930.0,105920.0,0.52276351]
[1750002105622,0.64894628,105930.0,105920.0,0.5404658]
[1750002106056,0.64894628,105930.0,105920.0,0.54046578]
[1750002106475,0.64894628,105930.0,105920.0,0.59713241]
[1750002107329,0.64894628,105930.0,105920.0,0.57943014]
[1750002107551,0.64894628,105930.0,105920.0,0.59713241]
[1750002107964,0.64894628,105930.0,105920.0,0.59713229]
[1750002108174,0.64894628,105930.0,105920.0,0.59713227]
[1750002108392,0.64894628,105930.0,105920.0,0.59713231]
[1750002108828,0.64894628,105930.0,105920.0,0.5971323]
[1750002109885,0.64894628,105930.0,105920.0,0.59713231]
[1750002110315,0.64894628,105930.0,105920.0,0.5971323]
[1750002111147,0.64894628,105930.0,105920.0,0.57943014]
[1750002111363,0.04678925,105930.0,105920.0,0.5971323]
[1750002111603,0.64894628,105930.0,105920.0,0.5971323]
[1750002111811,0.64894628,105930.0,105920.0,0.57943014]
[1750002112018,0.64894628,105930.0,105920.0,0.5971323]
[1750002112234,0.64894628,105930.0,105920.0,0.57943014]
[1750002113094,0.64894628,105930.0,105920.0,0.59713225]
[1750002113333,0.64894628,105930.0,105920.0,0.59713231]
[1750002113578,0.64894628,105930.0,105920.0,0.44277283]
[1750002113809,0.73234417,105930.0,105920.0,0.44277293]
[1750002114039,1.3345012,105930.0,105920.0,0.39673607]
[1750002114255,1.3345012,105930.0,105920.0,0.05549051]
[1750002114256,1.89162498,105930.0,105920.0,0.05549051]
[1750002114477,1.8910435,105930.0,105920.0,0.2159797]
[1750002114703,1.8910438,105930.0,105920.0,0.03542889]
[1750002114934,7.23364982,105930.0,105920.0,0.03543057]
[1750002115153,7.2620305,105930.0,105920.0,0.03543413]
[1750002115398,7.25903065,105930.0,105920.0,0.01771687]
[1750002115621,7.26403065,105930.0,105920.0,0.01871687]
[1750002115836,7.2640309,105930.0,105920.0,0.01871687]
[1750002116276,7.26403092,105930.0,105920.0,0.01871687]
[1750002116505,7.34941301,105930.0,105920.0,0.01871687]
[1750002116726,7.36127237,105930.0,105920.0,0.01871687]
[1750002116960,7.36127237,105930.0,105920.0,0.01771687]
[1750002116961,6.62134734,105930.0,105920.0,0.01771687]
[1750002117181,6.61834734,105930.0,105920.0,0.01871687]
[1750002117424,6.62235068,105930.0,105920.0,0.01871687]
[1750002117638,6.62635067,105930.0,105920.0,0.01871687]
[1750002117858,6.62248798,105930.0,105920.0,0.01971687]
[1750002118295,6.63135061,105930.0,105920.0,0.01971687]
[1750002119377,6.6313506,105930.0,105920.0,0.01971687]
[1750002119819,6.62248798,105930.0,105920.0,0.01971687]
[1750002120042,6.6313506,105930.0,105920.0,0.01971687]
[1750002120319,6.63135056,105930.0,105920.0,0.01971687]
[1750002120534,6.58260798,105930.0,105920.0,0.01971687]
[1750002120748,6.78559064,105930.0,105920.0,0.01971687]
[1750002120963,6.78559056,105930.0,105920.0,0.01971687]
[1750002121200,6.77672798,105930.0,105920.0,0.01971687]
[1750002121428,6.78559065,105930.0,105920.0,0.01971687]
[1750002121645,6.78559063,105930.0,105920.0,0.01971687]
[1750002121860,6.77672798,105930.0,105920.0,0.01971687]
[1750002122074,6.78559091,105930.0,105920.0,0.01971687]
[1750002122288,6.78559095,105930.0,105920.0,0.01971687]
[1750002122511,6.78559108,105930.0,105920.0,0.01971687]
[1750002122728,6.78559094,105930.0,105920.0,0.01971687]
[1750002122946,6.77672798,105930.0,105920.0,0.01971687]
[1750002123163,6.785591,105930.0,105920.0,0.01971687]
[1750002123387,6.78559111,105930.0,105920.0,0.01971687]
[1750002123609,6.77672798,105930.0,105920.0,0.01971687]
[1750002124067,6.7855912,105930.0,105920.0,0.01971687]
[1750002124281,6.77672798,105930.0,105920.0,0.01971687]
[1750002124504,6.78559144,105930.0,105920.0,0.01971687]
[1750002124727,6.78559144,105930.0,105920.0,0.03744301]
[1750002124950,6.78559143,105930.0,105920.0,0.01971687]
[1750002125403,6.77672798,105930.0,105920.0,0.01971687]
[1750002125619,6.78559135,105930.0,105920.0,0.03744281]
[1750002125831,6.78559135,105930.0,105920.0,0.03744307]
[1750002126049,6.77672798,105930.0,105920.0,0.03744312]
[1750002126250,6.7855913,105930.0,105920.0,0.03744285]
[1750002126545,6.77672798,105930.0,105920.0,0.01971687]
[1750002129920,6.50414711,105930.0,105920.0,0.01971687]
[1750002130168,6.16269408,105930.0,105920.0,0.01971687]
[1750002130658,6.69846711,105930.0,105920.0,0.01971687]
[1750002132025,6.69842711,105930.0,105920.0,0.01971687]
[1750002132242,6.50414711,105930.0,105920.0,0.01971687]
[1750002132453,6.69842711,105930.0,105920.0,0.01971687]
[1750002132666,6.79457633,105930.0,105920.0,0.01971687]
[1750002132883,6.2588033,105930.0,105920.0,0.01971687]
[1750002134481,6.79453633,105930.0,105920.0,0.01971687]
[1750002135586,6.80339374,105930.0,105920.0,0.01971687]
[1750002135786,6.80339374,105930.0,105920.0,0.03743]
[1750002136004,6.80339374,105930.0,105920.0,0.03742999]
[1750002136229,6.80339374,105930.0,105920.0,0.03743019]
[1750002136437,6.80339374,105930.0,105920.0,0.03743014]
[1750002136667,6.80339383,105930.0,105920.0,0.03743015]
[1750002136866,6.80339383,105930.0,105920.0,0.01971687]
[1750002137073,6.80339385,105930.0,105920.0,0.03743069]
[1750002137286,6.80339385,105930.0,105920.0,0.03743061]
[1750002137498,6.80339385,105930.0,105920.0,0.03743063]
[1750002137717,6.80339399,105930.0,105920.0,0.03743144]
[1750002137937,6.80339402,105930.0,105920.0,0.03743156]
[1750002138154,6.80339403,105930.0,105920.0,0.01971687]
[1750002138351,6.80339403,105930.0,105920.0,0.03743156]
[1750002138572,6.80347403,105930.0,105920.0,0.03743163]
[1750002138774,6.80347403,105930.0,105920.0,0.01971687]
[1750002138989,7.56082413,105930.0,105920.0,0.037432]
[1750002139246,7.56082413,105930.0,105920.0,0.01971687]
[1750002139456,7.56082413,105930.0,105920.0,0.03743254]
[1750002139676,7.56082413,105930.0,105920.0,0.01971687]
[1750002139896,7.56082413,105930.0,105920.0,0.0374327]
[1750002140120,7.53124512,105930.0,105920.0,0.03743271]
[1750002140349,7.53124512,105930.0,105920.0,0.03743291]
[1750002140604,7.54010254,105930.0,105920.0,0.03743291]
[1750002140815,7.53124512,105930.0,105920.0,0.03743291]
[1750002141042,6.80345899,105930.0,105920.0,0.01971687]
[1750002141258,6.79460275,105930.0,105920.0,0.03743302]
[1750002141475,6.79460275,105930.0,105920.0,0.03743304]
[1750002141727,6.80345875,105930.0,105920.0,0.037433]
[1750002142180,6.80345875,105930.0,105920.0,0.03743294]
[1750002142392,6.83177215,105930.0,105920.0,0.03743294]
[1750002142605,6.83175482,105930.0,105920.0,0.01971687]
[1750002142817,6.82289894,105930.0,105920.0,0.01971687]
[1750002143034,6.83175491,105930.0,105920.0,0.03743304]
[1750002143249,6.83175491,105930.0,105920.0,0.01971687]
[1750002143459,6.83175491,105930.0,105920.0,0.03743305]
[1750002143704,6.82289894,105930.0,105920.0,0.03743301]
[1750002143907,6.83175492,105930.0,105920.0,0.037433]
[1750002144356,6.82289894,105930.0,105920.0,0.03743291]
[1750002144571,6.86949299,105930.0,105920.0,0.03743292]
[1750002144800,6.86949298,105930.0,105920.0,0.03743303]
[1750002145318,6.860637,105930.0,105920.0,0.037433]
[1750002145525,6.86949298,105930.0,105920.0,0.01971687]
[1750002145768,6.87949297,105930.0,105920.0,0.03743304]
[1750002146036,6.870637,105930.0,105920.0,0.03743302]
[1750002146321,6.87949298,105930.0,105920.0,0.03743302]
[1750002146531,6.87949298,105930.0,105890.0,0.27390755]
[1750002146532,0.56394216,105900.0,105890.0,0.28335194]
[1750002146740,1.34442817,105900.0,105890.0,0.29279534]
[1750002146964,1.33498593,105900.0,105890.0,0.28335203]
[1750002147187,1.33498593,105900.0,105890.0,0.29279561]
[1750002147395,1.33498593,105900.0,105890.0,0.28335203]
[1750002147614,1.33498593,105900.0,105890.0,0.29279561]
[1750002147864,0.23896213,105890.0,105880.0,0.20778211]
[1750002148071,1.02531759,105890.0,105880.0,0.20778211]
[1750002148287,1.36531759,105890.0,105880.0,0.19833773]
[1750002148500,1.36531759,105890.0,105880.0,0.2077822]
[1750002148713,1.36531759,105890.0,105880.0,0.21722658]
[1750002148926,1.36531759,105890.0,105880.0,0.22667087]
[1750002149136,1.36531759,105890.0,105880.0,0.22676015]
[1750002149367,1.20344181,105890.0,105880.0,0.23620363]
[1750002149557,1.2138853,105890.0,105880.0,0.23820363]
[1750002150024,1.22332888,105890.0,105880.0,0.23820363]
[1750002150706,1.2138853,105890.0,105880.0,0.23820363]
[1750002150916,1.20444181,105890.0,105880.0,0.23820363]
[1750002151159,1.2138853,105890.0,105880.0,0.23820363]
[1750002151358,1.20444181,105890.0,105880.0,0.23820363]
[1750002152499,0.66867557,105890.0,105880.0,0.23820363]
[1750002152724,1.2138853,105890.0,105880.0,0.23820363]
[1750002153202,1.23932888,105890.0,105880.0,0.23820363]
[1750002155614,1.2298853,105890.0,105880.0,0.23820363]
[1750002156261,1.23932888,105890.0,105880.0,0.23820363]
[1750002157330,1.24877255,105890.0,105880.0,0.23820363]
[1750002157544,1.2298853,105890.0,105880.0,0.23820363]
[1750002158589,1.22044181,105890.0,105880.0,0.23820363]
[1750002158796,1.22040181,105890.0,105880.0,0.23820363]
[1750002159004,0.68463557,105890.0,105880.0,0.23820363]
[1750002159217,1.22040181,105890.0,105880.0,0.23820363]
[1750002159638,1.2298453,105890.0,105880.0,0.23820363]
[1750002159846,1.22040181,105890.0,105880.0,0.23820363]
[1750002160143,1.02600181,105890.0,105880.0,0.23820363]
[1750002160361,1.22044181,105890.0,105880.0,0.23820363]
[1750002161340,1.39251705,105890.0,105880.0,0.23820363]
[1750002161547,1.4267043,105890.0,105880.0,0.19098236]
[1750002161794,1.21337795,105890.0,105880.0,0.20042701]
[1750002161975,1.40785795,105890.0,105880.0,0.20987148]
[1750002162448,1.40785795,105890.0,105880.0,0.20042701]
[1750002162658,1.40785795,105890.0,105880.0,0.00208928]
[1750002162864,1.39841446,105890.0,105880.0,0.00208928]
[1750002163309,1.39541446,105890.0,105880.0,8.928e-05]
[1750002163528,2.02842246,105890.0,105880.0,0.00208928]
[1750002163748,2.03042246,105890.0,105880.0,0.00208928]
[1750002164592,1.49469622,105890.0,105880.0,0.00208928]
[1750002164898,1.49465622,105890.0,105880.0,0.00208928]
[1750002174282,2.03042246,105890.0,105880.0,0.00208928]
[1750002174482,2.03536015,105890.0,105880.0,0.00208928]
[1750002179806,1.49959391,105890.0,105880.0,0.00208928]
[1750002180929,2.17007125,105890.0,105880.0,0.00208928]
[1750002183592,1.97559125,105890.0,105880.0,0.00208928]
[1750002183837,6.87996025,105890.0,105880.0,0.00208928]
[1750002184062,6.90825397,105890.0,105880.0,0.00208928]
[1750002184267,7.07714843,105890.0,105880.0,0.00208928]
[1750002184705,7.07614843,105890.0,105880.0,0.00108928]
[1750002184918,6.94240753,105890.0,105880.0,0.00108928]
[1750002185133,6.98014559,105890.0,105880.0,0.00108928]
[1750002185353,6.97814559,105890.0,105880.0,8.928e-05]
[1750002185565,6.97914559,105890.0,105880.0,8.928e-05]
[1750002185784,6.98314559,105890.0,105880.0,0.00108928]
[1750002186002,6.98214559,105890.0,105880.0,8.928e-05]
[1750002186212,0.55726674,105860.0,105850.0,0.28336334]
[1750002186442,1.31637175,105860.0,105850.0,0.28336334]
[1750002186663,1.31637175,105860.0,105850.0,0.29281049]
[1750002186878,1.35645175,105860.0,105850.0,0.07558936]
[1750002187147,1.35645175,105860.0,105840.0,0.2232578]
[1750002187148,0.53839368,105850.0,105840.0,0.2232578]
[1750002187384,0.53839368,105850.0,105840.0,0.20775798]
[1750002187385,1.22900502,105850.0,105840.0,0.20775798]
[1750002187614,1.32515424,105850.0,105840.0,0.20775798]
[1750002187922,1.31570718,105850.0,105830.0,0.23827967]
[1750002188169,0.70005947,105840.0,105830.0,0.23827967]
[1750002188645,0.70005947,105840.0,105830.0,0.23875229]
[1750002188858,0.70005938,105840.0,105830.0,0.23875229]
[1750002189071,0.80366462,105840.0,105830.0,0.23875229]
[1750002189305,0.8131123,105840.0,105830.0,0.22375282]
[1750002189527,0.8131123,105840.0,105830.0,0.20825282]
[1750002189528,1.19716481,105840.0,105830.0,0.20825282]
[1750002189778,1.35256481,105840.0,105830.0,0.21125282]
[1750002190460,1.35256481,105840.0,105830.0,0.22899169]
[1750002190681,1.35256481,105840.0,105830.0,0.23015007]
[1750002190682,1.01864847,105840.0,105830.0,0.23015007]
[1750002190895,1.21412847,105840.0,105830.0,0.25733741]
[1750002191112,1.40309294,105840.0,105830.0,0.23959856]
[1750002191330,1.40309348,105840.0,105830.0,0.23015007]
[1750002191798,1.40309348,105840.0,105830.0,0.23844035]
[1750002192009,1.39364571,105840.0,105830.0,0.22899168]
[1750002192225,1.38419767,105840.0,105830.0,0.22899174]
[1750002192438,1.38419767,105840.0,105830.0,0.22899175]
[1750002192655,1.39959767,105840.0,105830.0,0.22899175]
[1750002192882,1.39014954,105840.0,105830.0,0.22899193]
[1750002193106,1.39014954,105840.0,105830.0,0.23844074]
[1750002193319,1.39014954,105840.0,105830.0,0.22070184]
[1750002193559,1.39014954,105840.0,105830.0,0.23844077]
[1750002193772,1.39014954,105840.0,105830.0,0.23844097]
[1750002193982,1.39014954,105840.0,105830.0,0.24788979]
[1750002194173,1.39014954,105840.0,105830.0,0.24788988]
[1750002194418,1.39014954,105840.0,105830.0,0.2384412]
[1750002194632,1.34998954,105840.0,105830.0,0.24788995]
[1750002194863,1.34998954,105840.0,105830.0,0.24788998]
[1750002195542,1.34998954,105840.0,105830.0,0.24789001]
[1750002195966,1.34998954,105840.0,105830.0,0.23015059]
[1750002196396,1.19566954,105840.0,105830.0,0.25733849]
[1750002196634,1.34994954,105840.0,105830.0,0.25733849]
[1750002196896,1.34994954,105840.0,105830.0,0.24788979]
[1750002197112,1.34994954,105840.0,105830.0,0.23015059]
[1750002197325,1.34994954,105840.0,105830.0,0.23844118]
[1750002197542,1.34994954,105840.0,105830.0,0.22070184]
[1750002197747,1.89255266,105840.0,105830.0,0.22899229]
[1750002198424,1.89255266,105840.0,105830.0,0.21954365]
[1750002198666,1.89255266,105840.0,105830.0,0.20180416]
[1750002198905,1.89255266,105840.0,105830.0,0.21954366]
[1750002199131,1.89255266,105840.0,105830.0,0.22899273]
[1750002199376,1.89255266,105840.0,105830.0,0.21125318]
[1750002199595,1.89255266,105840.0,105830.0,0.22899274]
[1750002199845,1.89255266,105840.0,105830.0,0.21125318]
[1750002200078,1.89255266,105840.0,105830.0,0.23844167]
[1750002200320,1.89255266,105840.0,105830.0,0.22070211]
[1750002200574,1.35630132,105840.0,105830.0,0.24789049]
[1750002200758,1.35630132,105840.0,105830.0,0.24789047]
[1750002200989,1.35630132,105840.0,105830.0,0.23015095]
[1750002201209,1.35630132,105840.0,105830.0,0.24789047]
[1750002201424,1.35630132,105840.0,105830.0,0.24789049]
[1750002201635,1.35630132,105840.0,105830.0,0.23015095]
[1750002201862,1.35630132,105840.0,105830.0,0.24789053]
[1750002202071,1.35630132,105840.0,105830.0,0.23015095]
[1750002202303,1.35630132,105840.0,105830.0,0.25733922]
[1750002202533,1.35630132,105840.0,105830.0,0.25733904]
[1750002202747,1.35630132,105840.0,105830.0,0.2395997]
[1750002202967,1.35630132,105840.0,105830.0,0.24789051]
[1750002203274,1.35630132,105840.0,105830.0,0.23015095]
[1750002203527,1.35630132,105840.0,105830.0,0.22070211]
[1750002203738,1.89255266,105840.0,105830.0,0.22070211]
[1750002204623,1.89255266,105840.0,105830.0,0.23844167]
[1750002204847,1.35630132,105840.0,105830.0,0.22070211]
[1750002205276,1.35630132,105840.0,105830.0,0.23844167]
[1750002205488,1.35630132,105840.0,105830.0,0.22070211]
[1750002205707,1.35630132,105840.0,105830.0,0.23844167]
[1750002206426,1.35630132,105840.0,105830.0,0.22070211]
[1750002206633,1.89255266,105840.0,105830.0,0.20180416]
[1750002206835,1.89255266,105840.0,105830.0,0.21964362]
[1750002207267,1.89255266,105840.0,105830.0,0.00347262]
[1750002207477,1.89255266,105840.0,105830.0,0.02121218]
[1750002207694,1.89255266,105840.0,105830.0,0.02121226]
[1750002208438,1.89255266,105840.0,105830.0,0.02121228]
[1750002208883,1.89255266,105840.0,105830.0,0.00347262]
[1750002209089,1.92095566,105840.0,105830.0,0.0212123]
[1750002209537,1.92095566,105840.0,105830.0,0.00347262]
[1750002209778,1.92095566,105840.0,105830.0,0.0212123]
[1750002210412,1.92095566,105840.0,105830.0,0.00347262]
[1750002210623,1.92095566,105840.0,105830.0,0.0212123]
[1750002210877,1.92095566,105840.0,105830.0,0.00347262]
[1750002211089,1.92095566,105840.0,105830.0,0.20190406]
[1750002211305,1.92095566,105840.0,105830.0,0.22909276]
[1750002211516,1.38470432,105840.0,105830.0,0.22909276]
[1750002211730,1.92095566,105840.0,105830.0,0.0212123]
[1750002211943,1.92095566,105840.0,105830.0,0.02121239]
[1750002212385,1.92095566,105840.0,105830.0,0.02121241]
[1750002212685,1.92095566,105840.0,105830.0,0.00347262]
[1750002213094,1.92095566,105840.0,105830.0,0.02121241]
[1750002213324,1.92095566,105840.0,105830.0,0.02121242]
[1750002213800,1.91995566,105840.0,105830.0,0.00347262]
[1750002214023,1.91995566,105840.0,105830.0,0.01821246]
[1750002214273,2.01619742,105840.0,105830.0,0.01821246]
[1750002214498,6.72720642,105840.0,105830.0,0.02221246]
[1750002214780,6.72720642,105840.0,105830.0,0.02221346]
[1750002215033,6.72720642,105840.0,105830.0,0.02221366]
[1750002215271,6.72720642,105840.0,105830.0,0.02221367]
[1750002215509,6.72720642,105840.0,105830.0,0.02221368]
[1750002215739,6.72720642,105840.0,105830.0,0.00447262]
[1750002215985,6.72720642,105840.0,105830.0,0.02221382]
[1750002216183,6.72720642,105840.0,105830.0,0.0222138]
[1750002216859,6.75552357,105840.0,105830.0,0.02221431]
[1750002217724,6.75552357,105840.0,105830.0,0.02221448]
[1750002218167,6.75552357,105840.0,105830.0,0.02221446]
[1750002218383,6.75452357,105840.0,105830.0,0.00447262]
[1750002218631,6.75452357,105840.0,105830.0,0.01821452]
[1750002218853,6.75452357,105840.0,105830.0,0.00247262]
[1750002219071,6.75452357,105840.0,105830.0,0.02021506]
[1750002219072,6.79326163,105840.0,105830.0,0.02021506]
[1750002219291,0.01890063,105810.0,105800.0,0.34075964]
[1750002219519,0.7317136,105810.0,105800.0,0.34080689]
[1750002219976,0.71919086,105810.0,105800.0,0.34080689]
[1750002220687,0.74009203,105810.0,105800.0,0.34480689]
[1750002221150,0.73064131,105810.0,105800.0,0.32820689]
[1750002221374,0.74009194,105810.0,105800.0,0.32420689]
[1750002221587,0.74754266,105810.0,105800.0,0.32420689]
[1750002221799,1.09054266,105810.0,105800.0,0.32720689]
[1750002222231,1.08954266,105810.0,105800.0,0.32720689]
[1750002223336,0.75176027,105810.0,105800.0,0.31090742]
[1750002223523,1.30401161,105810.0,105800.0,0.31090742]
[1750002223803,0.76876027,105810.0,105800.0,0.31090742]
[1750002224021,1.29863372,105810.0,105800.0,0.31090742]
[1750002224660,1.29867372,105810.0,105800.0,0.31090742]
[1750002225310,1.29867372,105810.0,105800.0,0.32035867]
[1750002226453,1.29867372,105810.0,105800.0,0.31090742]
[1750002227731,1.30452327,105810.0,105800.0,0.3109076]
[1750002227943,1.29507264,105810.0,105800.0,0.3109076]
[1750002228175,1.27617102,105810.0,105800.0,0.30145626]
[1750002228426,1.27617102,105810.0,105800.0,0.11249904]
[1750002228650,1.27617102,105810.0,105800.0,0.10304725]
[1750002229256,1.30458202,105810.0,105800.0,0.10304725]
[1750002229480,1.40082378,105810.0,105800.0,0.10304725]
[1750002231671,1.39882378,105810.0,105800.0,0.10004725]
[1750002231919,1.40082378,105810.0,105800.0,0.10204725]
[1750002232182,1.40082378,105810.0,105800.0,0.10004725]
[1750002232417,1.43942378,105810.0,105800.0,0.10004725]
[1750002232895,1.44042378,105810.0,105800.0,0.10004725]
[1750002233350,1.43942378,105810.0,105800.0,0.10891985]
[1750002233574,1.44242378,105810.0,105800.0,0.10991983]
[1750002233852,1.44242378,105810.0,105800.0,0.10104725]
[1750002234777,1.44242378,105810.0,105800.0,0.29895574]
[1750002235247,1.44242378,105810.0,105800.0,0.10991985]
[1750002235483,1.44242378,105810.0,105800.0,0.10104725]
[1750002235713,1.44242378,105810.0,105800.0,0.30840758]
[1750002235946,1.24890378,105810.0,105800.0,0.30840754]
[1750002236167,1.44238378,105810.0,105800.0,0.29953495]
[1750002236411,1.44238378,105810.0,105800.0,0.30840754]
[1750002236637,1.44238378,105810.0,105800.0,0.29953495]
[1750002236856,1.44238378,105810.0,105800.0,0.30898665]
[1750002237332,1.44238378,105810.0,105800.0,0.31785923]
[1750002237577,1.44238378,105810.0,105800.0,0.30898665]
[1750002238446,1.44238378,105810.0,105800.0,0.10104725]